lending/lending_fUSD_20240207
["ID","MTS","AMOUNT","RATE_DAILY","PERIOD"]
[313425461,1707334245532,-1617.27209021,0.000379,2]
[313425466,1707334245638,-2586.23261734,0.000379,2]
[313425468,1707334245684,-1162.788944,0.000379,2]
[313425519,1707334246658,-757.66413108,0.00033323,4]
[313425520,1707334246667,-155.44558031,0.00034999,2]
[313425521,1707334246677,-263.00885788,0.00034999,4]
[313425522,1707334246687,-242.07387271,0.00034999,4]
[313425523,1707334246698,-182.32609948,0.00037797,11]
[313425524,1707334246710,-7069.4238817,0.000379,2]
[313425525,1707334246723,-8967.87302292,0.000379,2]
[313425526,1707334246735,-22526.32733904,0.000379,2]
[313425527,1707334246747,-23916.39464472,0.000379,2]
[313425528,1707334246761,-2562.89531725,0.000379,2]
[313425529,1707334246773,-8332.44426051,0.000379,2]
[313425530,1707334246785,-1012.78,0.000379,2]
[313425531,1707334246798,-918.59884633,0.000379,2]
[313425532,1707334246809,-2904.71322091,0.000379,2]
[313425533,1707334246852,-3282.12406739,0.000379,2]
[313425534,1707334246864,-1243.23664988,0.000379,2]
[313425535,1707334246889,-191514.58331993,0.000379,2]
[313425536,1707334246911,-619.89790438,0.000379,2]
[313425537,1707334246924,-254.11616158,0.000379,2]
[313425538,1707334246936,-382.28943785,0.000379,2]
[313425539,1707334246948,-16807.42618397,0.000379,2]
[313425540,1707334246962,-599.27979208,0.000379,2]
[313425541,1707334246978,-1127.36546595,0.000379,2]
[313425542,1707334246990,-36712.54452849,0.000379,2]
[313425543,1707334247006,-89691.95741082,0.000379,2]
[313425544,1707334247016,-1500.0,0.000379,2]
[313425545,1707334247026,-15646.7572615,0.00037913,2]
[313425546,1707334247037,-428.2808275,0.00037939,2]
[313425547,1707334247047,-17123.87469383,0.00037939,2]
[313425548,1707334247059,-852.71055189,0.00037939,2]
[313425549,1707334325168,100000.0,0.00022411,2]
[313425551,1707334752367,772.0118815,0.00022,2]
[313425727,1707335431900,-488.8727,0.00022795,2]
[313425728,1707335431910,-273.00771533,0.00025,2]
[313425729,1707335431920,-350.0,0.00025,3]
[313425730,1707335431934,-1972.26398531,0.0003,2]
[313425731,1707335431945,-204.0,0.00031832,2]
[313425732,1707335431955,-206.0,0.00031832,2]
[313425733,1707335431965,-160.87706355,0.000325,2]
[313425734,1707335431974,-150.0,0.000326,2]
[313425735,1707335431984,-330.88,0.00032612,2]
[313425736,1707335431994,-2281.0584082,0.00032876,7]
[313425737,1707335432004,-848.62317673,0.00032876,6]
[313425738,1707335432013,-179.09636684,0.00032876,6]
[313425739,1707335432022,-499.88,0.00032876,2]
[313425740,1707335432032,-1505.0,0.000329,2]
[313425741,1707335432042,-164.0,0.00033,2]
[313425742,1707335432051,-155.4263679,0.00033321,4]
[313425743,1707335432061,-158.50706686,0.00033322,4]
[313425744,1707335432070,-2134.29168875,0.00033324,10]
[313425745,1707335432152,-567.47585182,0.00033324,10]
[313425746,1707335432164,-69.35183573,0.00033324,10]
[313425747,1707335432173,-1877.08304843,0.00033324,10]
[313425748,1707335432212,-1239.77509124,0.00033324,10]
[313425749,1707335432222,-155.84290699,0.00033324,10]
[313425750,1707335432231,-243.30126914,0.00033324,10]
[313425751,1707335432243,-253.63219258,0.00033324,10]
[313425752,1707335432255,-13073.99999999,0.00033324,10]
[313425753,1707335432279,-9000.0,0.00033324,10]
[313425754,1707335432291,-305.8486697,0.00033324,10]
[313425755,1707335432303,-753.8500003,0.00033324,10]
[313425810,1707335438709,-5896.38471645,0.00033324,10]
[313425812,1707335438724,-1393.7861142,0.00033324,10]
[313425815,1707335438736,-1517.40690279,0.00033324,10]
[313425818,1707335438756,-848.26710872,0.00033324,10]
[313425827,1707335438830,-1168.90730545,0.00033324,10]
[313425829,1707335438840,-172.7,0.000338,2]
[313425831,1707335438849,-172.7,0.000338,2]
[313425833,1707335438858,-172.7,0.000338,2]
[313425835,1707335438867,-172.7,0.000338,2]
[313425837,1707335438877,-172.7,0.000338,2]
[313425839,1707335438886,-172.7,0.000338,2]
[313425841,1707335438896,-172.7,0.000338,2]
[313425843,1707335438905,-172.7,0.000338,2]
[313425845,1707335438913,-172.7,0.000338,2]
[313425847,1707335438923,-172.7,0.000338,2]
[313425849,1707335438932,-172.7,0.000338,2]
[313425851,1707335438941,-172.7,0.000338,2]
[313425853,1707335438951,-172.7,0.000338,2]
[313425855,1707335438960,-172.7,0.000338,2]
[313425857,1707335438970,-172.7,0.000338,2]
[313425859,1707335438980,-172.7,0.000338,2]
[313425861,1707335438989,-172.7,0.000338,2]
[313425863,1707335438999,-172.7,0.000338,2]
[313425865,1707335439009,-172.7,0.000338,2]
[313425867,1707335439018,-172.7,0.000338,2]
[313425869,1707335439028,-153.38,0.000338,2]
[313425871,1707335439037,-204.0,0.0003418,6]
[313425873,1707335439046,-2095.28474415,0.00034199,4]
[313425875,1707335439056,-2074.0,0.000342,3]
[313425877,1707335439065,-13139.01224551,0.000342,3]
[313425880,1707335439079,-1088.98775449,0.000342,3]
[313425882,1707335439089,-199.63,0.00034479,2]
[313425884,1707335439098,-1000.0,0.00034496,2]
[313425886,1707335439107,-150.0,0.00034513,2]
[313425888,1707335439117,-150.0,0.00034548,10]
[313425890,1707335439127,-230.35,0.00034567,111]
[313425891,1707335439136,-150.23,0.00034585,2]
[313425894,1707335439145,-162.91,0.00034608,2]
[313425895,1707335439154,-250.0,0.00034636,2]
[313425898,1707335439164,-2000.0,0.00034653,2]
[313425900,1707335439173,-23900.0,0.00034694,2]
[313425902,1707335439182,-178.85,0.00034705,2]
[313425904,1707335439191,-2383.20800395,0.00034831,2]
[313425906,1707335439201,-150.23,0.00034843,2]
[313425907,1707335439210,-330.88,0.00034876,2]
[313425910,1707335439221,-863.20995851,0.00034998,4]
[313425912,1707335439231,-2025.09528888,0.00034998,4]
[313425913,1707335439240,-182.78513872,0.00034999,4]
[313425916,1707335439250,-2413.4342258,0.00034999,4]
[313425918,1707335439259,-411.87582363,0.00035,36]
[313425920,1707335439268,-1266.87418526,0.00035,4]
[313425922,1707335439278,-2014.32,0.00035,2]
[313425923,1707335439287,-150.23,0.000351,2]
[313425925,1707335439297,-150.23,0.00035358,2]
[313425926,1707335439307,-150.23,0.00035615,2]
[313425927,1707335439317,-3780.45,0.00035616,2]
[313425928,1707335439327,-150.23,0.00035873,2]
[313425929,1707335439337,-170.0,0.00036,2]
[313425930,1707335439347,-435.43601483,0.00036042,2]
[313425931,1707335439357,-150.23,0.0003613,2]
[313425932,1707335439367,-1139.95345104,0.00036235,14]
[313425933,1707335439377,-2014.32,0.00036235,2]
[313425934,1707335439386,-150.23,0.00036388,2]
[313425936,1707335439395,-200.25,0.00036493,2]
[313425938,1707335439404,-204.0,0.00036527,11]
[313425940,1707335439413,-3780.45,0.00036934,2]
[313425942,1707335439423,-330.88,0.00037139,2]
[313425944,1707335439432,-1000.0,0.000373,2]
[313425946,1707335439443,-5224.7344,0.00037314,2]
[313425948,1707335439452,-2014.32,0.0003747,2]
[313425950,1707335439462,-384.59153523,0.00037791,8]
[313425952,1707335439476,-184.96227971,0.00037822,2]
[313425954,1707335439486,-280.01385157,0.00037838,90]
[313425956,1707335439496,-3288.51919312,0.00037839,2]
[313425960,1707335439521,-97282.46000688,0.00037839,2]
[313425962,1707335439530,-100000.0,0.00037839,2]
[313425964,1707335439539,-239.27649906,0.00037891,10]
[313425966,1707335439548,-4506.61498118,0.000379,7]
[313425968,1707335439558,-39920.331846,0.00037901,2]
[313425970,1707335439567,-1966.90403469,0.00037922,2]
[313425972,1707335439576,-239.27649906,0.00037926,10]
[313425974,1707335439586,-239.27649906,0.00037928,10]
[313425976,1707335439595,-239.27649906,0.00037929,10]
[313425978,1707335439604,-717.82949718,0.00037934,10]
[313425980,1707335439614,-170.68784693,0.00037934,2]
[313425982,1707335439623,-5567.6305842,0.00037936,4]
[313425984,1707335439632,-2721.8262856,0.00037936,4]
[313425986,1707335439641,-545.08396776,0.00037936,4]
[313425988,1707335439650,-196.42295746,0.00037936,4]
[313425990,1707335439659,-2911.22314988,0.00037936,2]
[313425992,1707335439668,-1460.73806979,0.00037936,2]
[313425995,1707335439676,-861.05364966,0.00037936,2]
[313425997,1707335439686,-693.75647464,0.00037936,4]
[313425999,1707335439695,-8533.23117074,0.00037937,2]
[313426001,1707335439703,-177.04603739,0.00037937,4]
[313426003,1707335439713,-23242.790622,0.00037938,7]
[313426005,1707335439727,-7782.6881196,0.00037938,2]
[313426007,1707335439736,-534.16911945,0.00037939,2]
[313426009,1707335439745,-3260.2311591,0.00037939,2]
[313426011,1707335439754,-894.98613792,0.00037939,4]
[313426013,1707335439763,-10943.6189796,0.00037939,2]
[313426015,1707335439773,-200.0,0.00037939,2]
[313426017,1707335439782,-241.83973937,0.00037939,2]
[313426019,1707335439791,-2329.16667,0.00037939,2]
[313426021,1707335439802,-173.4371862,0.00037944,2]
[313426023,1707335439811,-6541.6340057,0.00037944,2]
[313426025,1707335439820,-15576.16891789,0.00037944,2]
[313426027,1707335439832,-106616.27801646,0.00037944,2]
[313426048,1707335440017,-6005.69143085,0.00037944,2]
[313426049,1707335440026,-527.26231483,0.00037944,2]
[313426051,1707335440035,-3667.779168,0.00037944,2]
[313426053,1707335440045,-503.65995209,0.00037944,2]
[313426056,1707335440056,-1977.26955391,0.00037944,2]
[313426058,1707335440065,-1541.64233343,0.00037944,2]
[313426060,1707335440076,-658.40469442,0.00037944,2]
[313426065,1707335440114,-3533.88886504,0.00037944,2]
[313426067,1707335440126,-2362.61,0.00037944,2]
[313426071,1707335440152,-2265.84463148,0.00037944,2]
[313426074,1707335440163,-364.07004906,0.00037944,2]
[313426150,1707335440850,-4632.02525227,0.00037944,2]
[313426151,1707335440860,-150.24,0.00038099,2]
[313426152,1707335440869,-3780.45,0.00038252,2]
[313426153,1707335440878,-1096.11850232,0.00038285,2]
[313426154,1707335440888,-172.7,0.000383,3]
[313426155,1707335440897,-172.7,0.000383,3]
[313426156,1707335440907,-172.7,0.000383,3]
[313426157,1707335440917,-172.7,0.000383,3]
[313426158,1707335440926,-172.7,0.000383,3]
[313426159,1707335440935,-172.7,0.000383,3]
[313426160,1707335440945,-172.7,0.000383,3]
[313426161,1707335440954,-172.7,0.000383,3]
[313426162,1707335440963,-172.7,0.000383,3]
[313426163,1707335440972,-172.7,0.000383,3]
[313426164,1707335440982,-172.7,0.000383,3]
[313426165,1707335440991,-172.7,0.000383,3]
[313426166,1707335441000,-172.7,0.000383,3]
[313426167,1707335441010,-172.7,0.000383,3]
[313426168,1707335441019,-172.7,0.000383,3]
[313426169,1707335441028,-172.7,0.000383,3]
[313426170,1707335441037,-172.7,0.000383,3]
[313426171,1707335441047,-172.7,0.000383,3]
[313426172,1707335441056,-172.7,0.000383,3]
[313426173,1707335441065,-172.7,0.000383,3]
[313426174,1707335441074,-153.38,0.000383,3]
[313426175,1707335441083,-153.38,0.000383,3]
[313426176,1707335441092,-150.0,0.00038356,2]
[313426177,1707335441102,-300.0,0.00038356,7]
[313426178,1707335441111,-450.0,0.00038356,12]
[313426179,1707335441120,-151.82,0.00038356,2]
[313426180,1707335441129,-1465.0,0.000385,7]
[313426181,1707335441138,-2014.32,0.00038705,2]
[313426182,1707335441148,-200.0,0.00038738,2]
[313426183,1707335441157,-200.0,0.00038738,2]
[313426184,1707335441165,-200.0,0.00038738,2]
[313426185,1707335441175,-1000.0,0.00038807,2]
[313426186,1707335441183,-204.0,0.00038874,16]
[313426187,1707335441193,-426.19142455,0.0003888,2]
[313426188,1707335441202,-426.19142451,0.00039079,2]
[313426189,1707335441211,-384.59153517,0.00039208,9]
[313426190,1707335441221,-330.88,0.00039403,2]
[313426191,1707335441231,-200.0,0.00039496,7]
[313426192,1707335441240,-1966.9040345,0.00039501,2]
[313426193,1707335441249,-3780.45,0.0003957,2]
[313426194,1707335441258,-151.82,0.00039635,2]
[313426195,1707335441268,-187.0,0.0003969,2]
[313426196,1707335441277,-2366.571379,0.0003994,2]
[313426197,1707335441287,-223.85574914,0.00039987,2]
[313426198,1707335441296,-10537.50968335,0.0003999,5]
[313426199,1707335441309,-77674.36196435,0.0003999,5]
[313426200,1707335441318,-3184.83157822,0.0004,5]
[313426201,1707335441327,-1399.23080802,0.0004,30]
[313426202,1707335441336,-1000.0,0.0004,2]
[313426203,1707335441346,-200.0,0.00040129,15]
[313426204,1707335441355,-800.0,0.00040194,10]
[313426205,1707335441364,-426.19142451,0.00040419,2]
[313426206,1707335441373,-150.01,0.00040517,2]
[313426207,1707335441382,-3310.68912683,0.00040517,2]
[313426208,1707335441391,-153.04798605,0.0004059,2]
[313426209,1707335441400,-152.73170136,0.0004059,2]
[313426210,1707335441410,-384.59153517,0.00040624,9]
[313426211,1707335441419,-6860.03654896,0.00040888,30]
[313426212,1707335441428,-3780.45,0.00040888,2]
[313426213,1707335441437,-151.82,0.00040913,2]
[313426214,1707335441447,-200.0,0.00040987,2]
[313426215,1707335441457,-150.0,0.00040988,30]
[313426216,1707335441467,-16506.45148453,0.00041,11]
[313426217,1707335441476,-960.39447797,0.00041,2]
[313426218,1707335441485,-155.0,0.00041,2]
[313426219,1707335441494,-1966.9040345,0.0004108,5]
[313426220,1707335441503,-250.0,0.00041095,2]
[313426221,1707335441512,-182.32609948,0.00041101,15]
[313426232,1707335441755,-861.0,0.00041106,2]
[313426233,1707335441769,-204.0,0.00041222,21]
[313426234,1707335441778,-269.58359667,0.00041337,4]
[313426235,1707335441788,-800.0,0.00041375,15]
[313426236,1707335441799,-1251.0,0.00041622,2]
[313426237,1707335441808,-1232.0,0.00041622,2]
[313426238,1707335441818,-706.0,0.00041622,2]
[313426239,1707335441828,-215.0,0.00041622,2]
[313426240,1707335441837,-1943.0,0.00041622,2]
[313426241,1707335441846,-428.0,0.00041622,2]
[313426242,1707335441856,-858.0,0.00041622,2]
[313426243,1707335441866,-150.0,0.00041622,2]
[313426244,1707335441876,-320.0,0.00041622,2]
[313426245,1707335441887,-1138.0,0.00041622,2]
[313426246,1707335441900,-2518.0,0.00041622,2]
[313426247,1707335441910,-342.0,0.00041622,2]
[313426248,1707335441919,-150.0,0.00041622,2]
[313426249,1707335441928,-150.0,0.00041622,2]
[313426250,1707335441937,-150.0,0.00041622,2]
[313426251,1707335441946,-500.0,0.00041643,7]
[313426252,1707335441955,-330.88,0.00041667,2]
[313426253,1707335441965,-426.19142451,0.00041759,4]
[313426254,1707335441975,-614.37144821,0.000418,30]
[313426255,1707335441984,-538.4664844,0.00041876,2]
[313426256,1707335441993,-152.93812825,0.0004189,13]
[313426257,1707335442002,-14679.00163838,0.000419,30]
[313426258,1707335442011,-66847.50209438,0.00041969,8]
[313426259,1707335442024,-603.96343893,0.00041969,8]
[313426260,1707335442035,-1176.75020462,0.00041969,8]
[313426261,1707335442054,-1950.58610927,0.00041969,8]
[313426262,1707335442257,-612.27748255,0.00041969,8]
[313426270,1707335443682,-373.5132,0.00040517,2]
[313426271,1707335443695,-2937.17592683,0.00040517,2]
[313426272,1707335443704,-1384.49061112,0.00041969,8]
[313426273,1707335443793,-3932.50346096,0.00041969,8]
[313426274,1707335443810,-316.220239,0.00041969,8]
[313426275,1707335443821,-394.62600106,0.00041969,8]
[313426276,1707335443853,-2034.03014487,0.00041969,8]
[313426277,1707335443864,-8958.92186094,0.00041969,8]
[313426278,1707335443873,-88211.8716477,0.0004199,8]
[313426279,1707335443883,-203.975721,0.0004199,14]
[313426280,1707335443892,-151.0,0.0004199,5]
[313426281,1707335443901,-151.0,0.0004199,5]
[313426282,1707335443911,-151.0,0.0004199,14]
[313426283,1707335443919,-151.0,0.0004199,14]
[313426284,1707335443929,-151.0,0.0004199,14]
[313426285,1707335443938,-151.0,0.0004199,14]
[313426286,1707335443947,-151.0,0.0004199,14]
[313426287,1707335443956,-151.0,0.0004199,14]
[313426288,1707335443965,-151.0,0.0004199,14]
[313426289,1707335443976,-151.0,0.0004199,14]
[313426290,1707335443985,-332.57745,0.0004199,14]
[313426291,1707335443994,-332.57745,0.0004199,14]
[313426292,1707335444002,-151.0,0.0004199,14]
[313426293,1707335444011,-151.0,0.0004199,14]
[313426294,1707335444020,-153.748065,0.0004199,14]
[313426296,1707335444029,-153.748065,0.0004199,14]
[313426297,1707335444038,-151.0,0.0004199,14]
[313426298,1707335444047,-160.742677,0.0004199,14]
[313426299,1707335444056,-151.0,0.0004199,14]
[313426300,1707335444065,-196.0,0.0004199,14]
[313426301,1707335444074,-151.0,0.0004199,14]
[313426302,1707335444083,-151.0,0.0004199,14]
[313426303,1707335444092,-221.608802,0.0004199,14]
[313426304,1707335444101,-221.608802,0.0004199,14]
[313426305,1707335444110,-161.289658,0.0004199,14]
[313426306,1707335444119,-161.289658,0.0004199,14]
[313426307,1707335444128,-318.305467,0.0004199,14]
[313426308,1707335444137,-318.305467,0.0004199,14]
[313426309,1707335444146,-305.581385,0.0004199,14]
[313426310,1707335444155,-305.581385,0.0004199,14]
[313426311,1707335444164,-151.0,0.0004199,14]
[313426312,1707335444173,-151.0,0.0004199,14]
[313426313,1707335444182,-385.695419,0.0004199,14]
[313426314,1707335444191,-385.695419,0.0004199,14]
[313426315,1707335444200,-151.0,0.0004199,14]
[313426316,1707335444210,-151.0,0.0004199,14]
[313426317,1707335444219,-151.0,0.0004199,14]
[313426318,1707335444229,-151.0,0.0004199,14]
[313426319,1707335444238,-151.0,0.0004199,14]
[313426320,1707335444247,-176.293836,0.0004199,14]
[313426321,1707335444256,-151.0,0.0004199,14]
[313426322,1707335444265,-156.20126122,0.00041998,4]
[313426323,1707335444274,-283.83163888,0.00041999,4]
[313426324,1707335444283,-223949.65804235,0.00041999,3]
[313426325,1707335444292,-75586.93379772,0.00042,12]
[313426326,1707335444304,-4911.22029618,0.00042,12]
[313426327,1707335444316,-3516.7071294,0.00042,12]
[313426328,1707335444327,-255.835,0.00042,12]
[313426334,1707335445902,-599.27979208,0.00042,12]
[313426335,1707335445914,-347.41192985,0.00042,12]
[313426336,1707335445926,-1330.81106016,0.00042,12]
[313426337,1707335445962,-635.35853683,0.00042,12]
[313426338,1707335446084,-500.0,0.00042,12]
[313426339,1707335446110,-2418.2,0.00042,12]
[313426347,1707335447340,-9898.24245778,0.00042,12]
[313426348,1707335447350,-2476.56354704,0.00042,4]
[313426349,1707335447360,-22667.23321783,0.00042,30]
[313426350,1707335447369,-991.45,0.00042,7]
[313426351,1707335447378,-1000.0,0.00042,11]
[313426352,1707335447387,-478.582462,0.00042,2]
[313426353,1707335447396,-478.582462,0.00042,2]
[313426354,1707335447406,-384.59153517,0.00042041,10]
[313426355,1707335447415,-421.17,0.00042192,2]
[313426356,1707335447424,-342.27,0.00042192,2]
[313426357,1707335447433,-248.00512523,0.00042192,2]
[313426358,1707335652286,145.44535869,0.0002,2]
[313426359,1707335652309,917.45724019,0.0002,2]
[313426360,1707335652333,917.45724019,0.0002,2]
[313426361,1707335652355,59.02016093,0.0002,2]
[313426363,1707335673225,898.56062181,0.00023,3]
[313426370,1707335727895,-184.96227971,0.00022899,2]
[313426371,1707335727916,-415.03772029,0.000229,2]
[313426372,1707335734845,-123.4287641,0.000229,2]
[313426373,1707335734866,-3264.35460987,0.000229,2]
[313426374,1707335734895,-1879.9685603,0.000229,2]
[313426375,1707335734928,-2589.01973371,0.00022997,2]
[313426376,1707335734957,-637.23928844,0.00022998,2]
[313426377,1707335734988,-1148.98904358,0.00022999,2]
[313426378,1707335793837,591.99916266,0.00023,3]
[313426379,1707335821704,177.04,0.00022,2]
[313426380,1707335866091,181.39707926,0.00022,2]
[313426381,1707335866115,103.99288607,0.00022,2]
[313426382,1707335866795,155.0,0.00022,2]
[313426383,1707335867579,155.0,0.00022,2]
[313426384,1707335868690,268.31807062,0.00022,2]
[313426385,1707335871228,155.0,0.00022,2]
[313426386,1707335872558,283.92096419,0.00022,2]
[313426387,1707335874951,155.0,0.00022,2]
[313426388,1707335884089,282.91068374,0.00022,2]
[313426389,1707335884693,268.31807062,0.00022,2]
[313426390,1707335886551,241.67425592,0.00022,2]
[313426391,1707335888843,219.81039531,0.00022,2]
[313426392,1707335889046,226.16609982,0.00022,2]
[313426393,1707335890197,155.0,0.00022,2]
[313426394,1707335893230,216.10544186,0.00022,2]
[313426395,1707335902689,342.32349912,0.00022,2]
[313426396,1707335910210,209.39399773,0.00022,2]
[313426397,1707335916001,295.99958133,0.00023,3]
[313426398,1707335926912,345.89909223,0.000229,6]
[313426399,1707336028774,295.99958134,0.00023,3]
[313426400,1707336072473,276.7192738,0.000229,6]
[313426403,1707336221299,221.37541904,0.000229,6]
[313426405,1707336370672,177.10033524,0.000229,6]
[313426406,1707336435498,352.66,0.00022,2]
[313426417,1707336546274,176.7,0.00016712,2]
[313426442,1707336632630,-494.02091641,0.00022799,2]
[313426443,1707336632657,-161.35776014,0.000228,2]
[313426444,1707336632686,-2829.89916928,0.000229,2]
[313426445,1707336632717,-5758.62052002,0.000229,2]
[313426446,1707336632740,-3307.4748878,0.000229,2]
[313426447,1707336632766,-784.0904307,0.000229,2]
[313426448,1707336632799,-1253.31237354,0.000229,2]
[313426449,1707336632817,-2153.86593756,0.000229,2]
[313426450,1707336632841,-11962.14116744,0.000229,2]
[313426451,1707336632870,-1085.75531076,0.000229,2]
[313426452,1707336632886,-170.68784693,0.0002299,2]
[313426453,1707336632910,-311.43526537,0.00022997,2]
[313426454,1707336632927,-1496.69185114,0.00022997,2]
[313426455,1707336632943,-155.60010927,0.00022997,2]
[313426456,1707336632964,-400.0,0.00022997,2]
[313426457,1707336632987,-199.98123495,0.00022997,2]
[313426458,1707336633000,-173.44823541,0.00022998,2]
[313426459,1707336633025,-531490.29034415,0.00022999,2]
[313426460,1707336633050,-217.36970294,0.00022999,2]
[313426461,1707336633087,-425.28405748,0.00022999,2]
[313426462,1707336633118,-193.87203917,0.00022999,2]
[313426463,1707336633142,-160.27809314,0.00022999,2]
[313426464,1707336633157,-531.33313832,0.00022999,2]
[313426465,1707336633183,-150.0,0.00022999,2]
[313426466,1707336633208,-150.0,0.00022999,2]
[313426467,1707336633236,-150.0,0.00022999,2]
[313426468,1707336633261,-150.0,0.00022999,2]
[313426469,1707336633289,-150.0,0.00022999,2]
[313426470,1707336633306,-150.0,0.00022999,2]
[313426471,1707336633330,-846263.25829264,0.00023,2]
[313426472,1707336633357,-1822885.86009284,0.00023,2]
[313426473,1707336633410,-1553.06,0.00023,2]
[313426474,1707336633454,-9070.62001971,0.00023,2]
[313426478,1707336633712,-963.54444357,0.00023,2]
[313426479,1707336633741,-369.02573915,0.00023,2]
[313426480,1707336633819,-431.72341497,0.00023,2]
[313426481,1707336633906,-2146.34346985,0.00023,2]
[313426482,1707336633979,-824.46006217,0.00023,2]
[313426483,1707336634097,-479.70601001,0.00023,2]
[313426484,1707336634117,-1694.90134549,0.00023,2]
[313426485,1707336634146,-196549.59094043,0.00023,2]
[313426489,1707336638568,-3621.01714263,0.00023,2]
[313426490,1707336638582,-6464.42087606,0.00023,2]
[313426491,1707336638650,-17169.75641424,0.00023,2]
[313426492,1707336638668,-1299.01489791,0.00023,2]
[313426494,1707336639311,-15414.11157369,0.00023,2]
[313426495,1707336639334,-331.99314566,0.00023,2]
[313426496,1707336639361,-6641.09718764,0.00023,2]
[313426497,1707336639379,-2186.82997531,0.00023,2]
[313426498,1707336639424,-729.20431587,0.00023,2]
[313426499,1707336639438,-741.27723955,0.00023,2]
[313426500,1707336639473,-420.8888349,0.00023,2]
[313426501,1707336639492,-313.89851893,0.00023,2]
[313426502,1707336639513,-291.77069467,0.00023,2]
[313426503,1707336639532,-578.267575,0.00023,2]
[313426505,1707336639545,-240960.29502585,0.00023,2]
[313426507,1707336639581,-652.69310717,0.00023,2]
[313426511,1707336639654,-543.68032293,0.00023,2]
[313426513,1707336639675,-2101.5,0.00023,2]
[313426518,1707336639741,-3077.77406271,0.00023,2]
[313426521,1707336639766,-24099.21362721,0.00023,2]
[313426524,1707336639809,-2183.19584611,0.00023,2]
[313426526,1707336639832,-4700.70633992,0.00023,2]
[313426528,1707336639877,-5067.72629651,0.00023,2]
[313426532,1707336639924,-631.866985,0.00023,2]
[313426534,1707336639943,-1095.5868,0.00023,2]
[313426628,1707336641791,-13626.19655135,0.00023,2]
[313426630,1707336641819,-1057.19,0.00023,2]
[313426784,1707336644228,-458.87608,0.00023,2]
[313426809,1707336644453,-1044.1616267,0.00023,2]
[313426993,1707336646113,-643.26027872,0.00022999,2]
[313426995,1707336646123,-108.94246572,0.00023,2]
[313426999,1707336646152,-409.248,0.00023,2]
[313427001,1707336646163,-7793.81797934,0.00023,2]
[313427013,1707336646271,-37237.28636655,0.00023,2]
[313427099,1707336647150,-10888.94667167,0.00023,2]
[313427102,1707336647161,-3975.58146488,0.00023,2]
[313427104,1707336647175,-110829.27842912,0.00023,2]
[313427109,1707336647216,-477.48977524,0.00023,2]
[313427112,1707336647231,-4603.86742427,0.00023,2]
[313427119,1707336647286,-1573.10586319,0.00023,2]
[313427121,1707336647299,-896.61198304,0.00023,2]
[313427123,1707336647311,-13041.85590596,0.00023,2]
[313427126,1707336647323,-44319.4441258,0.00023,2]
[313427131,1707336647362,-103833.41741308,0.00023,2]
[313427133,1707336647374,-33237.06532661,0.00023,2]
[313427136,1707336647386,-239816.21230773,0.00023,2]
[313427138,1707336647400,-161.35776013,0.00023,2]
[313427140,1707336647409,-161.35776013,0.000232,2]
[313427142,1707336647418,-161.35776013,0.000234,2]
[313427144,1707336647428,-3367.91,0.000234,2]
[313427146,1707336647437,-980.92,0.000234,2]
[313427148,1707336647446,-161.35776013,0.000236,2]
[313427150,1707336647457,-177.17877713,0.00024,2]
[313427152,1707336647467,-263.63,0.00024075,2]
[313427155,1707336647477,-3307.4748878,0.00024747,2]
[313427157,1707336647487,-22549.59094043,0.00025,7]
[313427160,1707336647496,-600.0,0.0002532,2]
[313427163,1707336647505,-4913.39148276,0.000259,2]